[Event "Early-Titled-Tuesday-Blitz-September-12-2023"]
[Site "Chess.com"]
[Date "2023.09.12"]
[Round "8"]
[White "Actuary44"]
[Black "Vision_64"]
[Result "0-1"]
[WhiteElo "2505"]
[BlackElo "2371"]
[TimeControl "180+1"]
[EndTime "9:28:16 PDT"]
[Termination "Vision_64 won by resignation"]

1. e4 {[%clk 0:03:00.9]} 1... e6 {[%clk 0:02:57.6]} 2. d4 {[%clk 0:03:00.9]}
2... d5 {[%clk 0:02:57.3]} 3. Nc3 {[%clk 0:03:01.8]} 3... Nf6 {[%clk 0:02:56.5]}
4. e5 {[%clk 0:03:01.6]} 4... Ng8 {[%clk 0:02:56.3]} 5. f4 {[%clk 0:03:02.5]}
5... Nh6 {[%clk 0:02:51.6]} 6. Nf3 {[%clk 0:03:02.5]} 6... Nf5 {[%clk
0:02:50.3]} 7. Bd3 {[%clk 0:03:02.7]} 7... Nh4 {[%clk 0:02:38.6]} 8. O-O {[%clk
0:03:01.3]} 8... Nxf3+ {[%clk 0:02:36.4]} 9. Qxf3 {[%clk 0:03:02.2]} 9... c5
{[%clk 0:02:37]} 10. dxc5 {[%clk 0:03:00.7]} 10... Bxc5+ {[%clk 0:02:36.3]} 11.
Kh1 {[%clk 0:03:01.1]} 11... Nc6 {[%clk 0:02:33.7]} 12. Ne2 {[%clk 0:02:58.9]}
12... Bd7 {[%clk 0:02:26.9]} 13. a3 {[%clk 0:02:55.6]} 13... Qe7 {[%clk
0:02:10.8]} 14. b4 {[%clk 0:02:55.1]} 14... Bb6 {[%clk 0:02:07.4]} 15. Bb2
{[%clk 0:02:54.4]} 15... h5 {[%clk 0:01:48.2]} 16. f5 {[%clk 0:02:50.9]} 16...
exf5 {[%clk 0:01:44.4]} 17. Nf4 {[%clk 0:02:44.6]} 17... Be6 {[%clk 0:01:36.9]}
18. Nxd5 {[%clk 0:02:41.3]} 18... Bxd5 {[%clk 0:01:36.8]} 19. Qxd5 {[%clk
0:02:42.2]} 19... O-O {[%clk 0:01:26.4]} 20. Bxf5 {[%clk 0:02:39]} 20... Rad8
{[%clk 0:01:13.8]} 21. Qe4 {[%clk 0:02:37.9]} 21... Bd4 {[%clk 0:01:07.7]} 22.
Bxd4 {[%clk 0:02:11.6]} 22... Rxd4 {[%clk 0:01:08.6]} 23. Qf3 {[%clk 0:02:10.1]}
23... Qxe5 {[%clk 0:00:41.1]} 24. Rae1 {[%clk 0:01:55.3]} 24... Qd6 {[%clk
0:00:28.1]} 25. Qxh5 {[%clk 0:01:27.7]} 25... g6 {[%clk 0:00:28.1]} 26. Qg5
{[%clk 0:01:27.7]} 26... Kg7 {[%clk 0:00:19.1]} 27. Bd3 {[%clk 0:01:21.8]} 27...
Rh8 {[%clk 0:00:17.8]} 28. h3 {[%clk 0:01:17.3]} 28... Rdh4 {[%clk 0:00:18]} 29.
b5 {[%clk 0:01:08.4]} 29... Rxh3+ {[%clk 0:00:17.2]} 30. Kg1 {[%clk 0:01:00.4]}
30... Qd4+ {[%clk 0:00:14.2]} 31. Re3 {[%clk 0:00:52.7]} 31... Rxe3 {[%clk
0:00:12.7]} 32. Rxf7+ {[%clk 0:00:39.7]} 32... Kxf7 {[%clk 0:00:12.3]} 33. Qxg6+
{[%clk 0:00:39.4]} 33... Ke7 {[%clk 0:00:12.2]} 34. Qg5+ {[%clk 0:00:37]} 34...
Kd6 {[%clk 0:00:09]} 35. Qg6+ {[%clk 0:00:33.7]} 35... Re6+ {[%clk 0:00:08.9]}
0-1

[Event "Early-Titled-Tuesday-Blitz-September-12-2023"]
[Site "Chess.com"]
[Date "2023.09.12"]
[Round "8"]
[White "CFalcons8"]
[Black "arenal72"]
[Result "0-1"]
[WhiteElo "2315"]
[BlackElo "2514"]
[TimeControl "180+1"]
[EndTime "9:28:16 PDT"]
[Termination "arenal72 won on time"]

1. e4 {[%clk 0:02:59.9]} 1... Nc6 {[%clk 0:02:59.5]} 2. d4 {[%clk 0:02:58.8]}
2... d5 {[%clk 0:02:58.4]} 3. exd5 {[%clk 0:02:55.7]} 3... Qxd5 {[%clk
0:02:59.3]} 4. c3 {[%clk 0:02:52.1]} 4... e5 {[%clk 0:02:53.5]} 5. dxe5 {[%clk
0:02:53]} 5... Qxd1+ {[%clk 0:02:51.2]} 6. Kxd1 {[%clk 0:02:52.9]} 6... Nxe5
{[%clk 0:02:52.1]} 7. Bf4 {[%clk 0:02:39.2]} 7... Bd6 {[%clk 0:02:50.6]} 8. Nd2
{[%clk 0:02:35.8]} 8... Nf6 {[%clk 0:02:41.1]} 9. Bxe5 {[%clk 0:02:20.8]} 9...
Bxe5 {[%clk 0:02:38]} 10. Ngf3 {[%clk 0:02:21.3]} 10... Bf4 {[%clk 0:02:37.1]}
11. Bd3 {[%clk 0:02:19]} 11... O-O {[%clk 0:02:32.5]} 12. Kc2 {[%clk 0:01:59.6]}
12... Bg4 {[%clk 0:02:23.5]} 13. h3 {[%clk 0:01:47.7]} 13... Be6 {[%clk
0:02:17]} 14. g3 {[%clk 0:01:29.5]} 14... Bxd2 {[%clk 0:02:08.7]} 15. Nxd2
{[%clk 0:01:30.4]} 15... Rad8 {[%clk 0:02:08.4]} 16. g4 {[%clk 0:01:18.1]} 16...
Rd7 {[%clk 0:02:03.7]} 17. Ne4 {[%clk 0:01:10.5]} 17... Rfd8 {[%clk 0:01:58.4]}
18. Nxf6+ {[%clk 0:01:06.2]} 18... gxf6 {[%clk 0:01:57.6]} 19. Rhd1 {[%clk
0:01:04.4]} 19... c5 {[%clk 0:01:49.9]} 20. c4 {[%clk 0:00:39.1]} 20... Rd4
{[%clk 0:01:37.7]} 21. b3 {[%clk 0:00:36]} 21... h5 {[%clk 0:01:32.9]} 22. f3
{[%clk 0:00:32]} 22... h4 {[%clk 0:01:28.6]} 23. Rd2 {[%clk 0:00:27.4]} 23...
Kg7 {[%clk 0:01:28]} 24. Rad1 {[%clk 0:00:20.5]} 24... Kh6 {[%clk 0:01:27.9]}
25. Be4 {[%clk 0:00:15]} 25... Rxd2+ {[%clk 0:01:20.1]} 26. Rxd2 {[%clk
0:00:15.9]} 26... Rxd2+ {[%clk 0:01:20.5]} 27. Kxd2 {[%clk 0:00:16.8]} 27... b6
{[%clk 0:01:16.3]} 28. f4 {[%clk 0:00:14.7]} 28... Bd7 {[%clk 0:01:15.4]} 29.
Bd5 {[%clk 0:00:10.6]} 29... Kg7 {[%clk 0:01:13.1]} 30. Ke3 {[%clk 0:00:09]}
30... Be6 {[%clk 0:01:12.7]} 31. Bf3 {[%clk 0:00:04.7]} 31... f5 {[%clk
0:01:10.7]} 32. g5 {[%clk 0:00:04.2]} 32... f6 {[%clk 0:01:10.7]} 33. Bd5 {[%clk
0:00:02.4]} 33... Bd7 {[%clk 0:01:04.4]} 34. Kf3 {[%clk 0:00:01.5]} 34... Kg6
{[%clk 0:01:01.8]} 35. Ke3 {[%clk 0:00:01.9]} 35... fxg5 {[%clk 0:01:01.4]} 36.
fxg5 {[%clk 0:00:02.8]} 36... Kxg5 {[%clk 0:01:02.3]} 37. Kf3 {[%clk 0:00:03.2]}
37... Be8 {[%clk 0:01:01.3]} 38. Kf2 {[%clk 0:00:04.1]} 38... Kf4 {[%clk
0:01:00.8]} 39. a3 {[%clk 0:00:04.5]} 39... a5 {[%clk 0:01:00.3]} 40. Bf3 {[%clk
0:00:03.4]} 40... Ke5 {[%clk 0:00:57.6]} 41. Ke3 {[%clk 0:00:03]} 41... f4+
{[%clk 0:00:58]} 42. Kf2 {[%clk 0:00:03]} 42... Bd7 {[%clk 0:00:58.6]} 43. Bg2
{[%clk 0:00:03.1]} 43... Kd4 {[%clk 0:00:58.4]} 0-1

[Event "Early-Titled-Tuesday-Blitz-September-12-2023"]
[Site "Chess.com"]
[Date "2023.09.12"]
[Round "8"]
[White "secretsuperstar7"]
[Black "karinachess1"]
[Result "0-1"]
[WhiteElo "2425"]
[BlackElo "2612"]
[TimeControl "180+1"]
[EndTime "9:28:21 PDT"]
[Termination "karinachess1 won by checkmate"]

1. c4 {[%clk 0:03:00]} 1... e5 {[%clk 0:02:59.4]} 2. Nc3 {[%clk 0:02:58.5]} 2...
d6 {[%clk 0:02:59.7]} 3. g3 {[%clk 0:02:58.4]} 3... f5 {[%clk 0:03:00]} 4. Bg2
{[%clk 0:02:58.7]} 4... Nf6 {[%clk 0:03:00.5]} 5. d4 {[%clk 0:02:56.3]} 5... Nc6
{[%clk 0:02:49.8]} 6. Nf3 {[%clk 0:02:42.2]} 6... Be7 {[%clk 0:02:37.5]} 7. O-O
{[%clk 0:02:40]} 7... e4 {[%clk 0:02:25]} 8. Ne1 {[%clk 0:02:33.5]} 8... O-O
{[%clk 0:02:23.3]} 9. Rb1 {[%clk 0:02:32.8]} 9... a5 {[%clk 0:02:11.1]} 10. f3
{[%clk 0:02:30]} 10... exf3 {[%clk 0:01:44.3]} 11. exf3 {[%clk 0:02:27.5]} 11...
d5 {[%clk 0:01:40.7]} 12. cxd5 {[%clk 0:02:14.1]} 12... Nxd5 {[%clk 0:01:39.3]}
13. Qb3 {[%clk 0:02:05.1]} 13... Be6 {[%clk 0:01:39.2]} 14. f4 {[%clk
0:01:46.3]} 14... Nxd4 {[%clk 0:01:05.2]} 15. Qc4 {[%clk 0:01:35.5]} 15... Nxf4
{[%clk 0:01:01]} 16. Qa4 {[%clk 0:01:26.2]} 16... Nxg2 {[%clk 0:00:35.9]} 17.
Nxg2 {[%clk 0:01:27.1]} 17... Bc5 {[%clk 0:00:26.1]} 18. Be3 {[%clk 0:01:24.1]}
18... Qf6 {[%clk 0:00:19.6]} 19. Rbd1 {[%clk 0:01:20.8]} 19... Rfd8 {[%clk
0:00:18.9]} 20. Kh1 {[%clk 0:01:11.9]} 20... b6 {[%clk 0:00:18.8]} 21. Nf4
{[%clk 0:01:05.7]} 21... Bf7 {[%clk 0:00:17.1]} 22. Rd2 {[%clk 0:00:54.7]} 22...
Ne6 {[%clk 0:00:16.9]} 23. Rxd8+ {[%clk 0:00:42.2]} 23... Rxd8 {[%clk
0:00:17.1]} 24. Nxe6 {[%clk 0:00:42.5]} 24... Bxe6 {[%clk 0:00:16.9]} 25. Bxc5
{[%clk 0:00:42.4]} 25... bxc5 {[%clk 0:00:17.8]} 26. Rd1 {[%clk 0:00:37.5]}
26... Rxd1+ {[%clk 0:00:17.3]} 27. Qxd1 {[%clk 0:00:35.2]} 27... Qd4 {[%clk
0:00:16]} 28. Qf3 {[%clk 0:00:32.1]} 28... Kf7 {[%clk 0:00:13.4]} 29. Qb7 {[%clk
0:00:31]} 29... Qd6 {[%clk 0:00:12.6]} 30. Kg1 {[%clk 0:00:28.5]} 30... h5
{[%clk 0:00:12.8]} 31. Nb5 {[%clk 0:00:23.1]} 31... Qd1+ {[%clk 0:00:12.5]} 32.
Kf2 {[%clk 0:00:23.2]} 32... Qd2+ {[%clk 0:00:12.1]} 33. Kf1 {[%clk 0:00:21.2]}
33... Bc4+ {[%clk 0:00:11.4]} 34. Kg1 {[%clk 0:00:17.5]} 34... Qe1+ {[%clk
0:00:11.6]} 35. Kg2 {[%clk 0:00:16.9]} 35... Qf1# {[%clk 0:00:12.1]} 0-1

[Event "Early-Titled-Tuesday-Blitz-September-12-2023"]
[Site "Chess.com"]
[Date "2023.09.12"]
[Round "8"]
[White "Zampronha1971"]
[Black "guillembaches"]
[Result "0-1"]
[WhiteElo "2338"]
[BlackElo "2532"]
[TimeControl "180+1"]
[EndTime "9:28:25 PDT"]
[Termination "guillembaches won by resignation"]

1. e4 {[%clk 0:03:00.9]} 1... d5 {[%clk 0:03:00]} 2. exd5 {[%clk 0:03:00.4]}
2... Qxd5 {[%clk 0:03:00.9]} 3. Nc3 {[%clk 0:02:59.2]} 3... Qa5 {[%clk
0:03:00.5]} 4. d4 {[%clk 0:02:59.6]} 4... Nf6 {[%clk 0:03:00.5]} 5. Nf3 {[%clk
0:03:00.1]} 5... Bf5 {[%clk 0:02:58.7]} 6. Bc4 {[%clk 0:02:58.3]} 6... e6 {[%clk
0:02:58.3]} 7. Qe2 {[%clk 0:02:58.3]} 7... Bb4 {[%clk 0:02:50.2]} 8. Bd2 {[%clk
0:02:58.6]} 8... c6 {[%clk 0:02:38.5]} 9. Ne5 {[%clk 0:02:59]} 9... Nbd7 {[%clk
0:02:32.3]} 10. g4 {[%clk 0:02:57.5]} 10... Nxe5 {[%clk 0:02:19.5]} 11. dxe5
{[%clk 0:02:58.4]} 11... Nxg4 {[%clk 0:02:09.5]} 12. Rg1 {[%clk 0:02:58.1]}
12... Nxe5 {[%clk 0:01:35.7]} 13. Rxg7 {[%clk 0:02:53.9]} 13... Nxc4 {[%clk
0:01:24.5]} 14. Qxc4 {[%clk 0:02:53.1]} 14... Bg6 {[%clk 0:01:19.5]} 15. O-O-O
{[%clk 0:02:36.5]} 15... O-O-O {[%clk 0:01:14.5]} 16. a3 {[%clk 0:02:28.2]}
16... Bxc3 {[%clk 0:01:10.4]} 17. Bxc3 {[%clk 0:02:27.5]} 17... Rxd1+ {[%clk
0:01:07.3]} 18. Kxd1 {[%clk 0:02:28.4]} 18... Rd8+ {[%clk 0:01:05.9]} 19. Kc1
{[%clk 0:01:57.3]} 19... Qf5 {[%clk 0:01:03.8]} 20. Qe2 {[%clk 0:01:53.2]} 20...
Qd5 {[%clk 0:00:56.9]} 21. b3 {[%clk 0:01:42.3]} 21... Qh1+ {[%clk 0:00:52.7]}
22. Kb2 {[%clk 0:01:42.4]} 22... Qxh2 {[%clk 0:00:45.2]} 23. Be5 {[%clk
0:01:37.4]} 23... Qh1 {[%clk 0:00:37.3]} 24. Bf6 {[%clk 0:01:23.2]} 24... Re8
{[%clk 0:00:28]} 25. Qe3 {[%clk 0:01:18.2]} 25... Kb8 {[%clk 0:00:22.3]} 26.
Qe5+ {[%clk 0:01:17.6]} 26... Ka8 {[%clk 0:00:21.1]} 27. Qa5 {[%clk 0:01:09.4]}
27... Qe4 {[%clk 0:00:19.3]} 28. Qd2 {[%clk 0:00:58.3]} 28... Qd5 {[%clk
0:00:18.6]} 29. Qxd5 {[%clk 0:00:55.6]} 29... exd5 {[%clk 0:00:18.2]} 30. c4
{[%clk 0:00:49.6]} 30... dxc4 {[%clk 0:00:16]} 31. bxc4 {[%clk 0:00:50.5]} 31...
Kb8 {[%clk 0:00:15.1]} 32. Kc3 {[%clk 0:00:47.9]} 32... Kc8 {[%clk 0:00:15.2]}
33. Bd4 {[%clk 0:00:47]} 33... a6 {[%clk 0:00:14.6]} 34. a4 {[%clk 0:00:40]}
34... Kd7 {[%clk 0:00:13.8]} 35. a5 {[%clk 0:00:38.8]} 35... Ke6 {[%clk
0:00:13.6]} 36. Kd2 {[%clk 0:00:36.6]} 36... Kf5 {[%clk 0:00:12.2]} 37. Bc3
{[%clk 0:00:31.2]} 37... h5 {[%clk 0:00:12.3]} 0-1

[Event "Early-Titled-Tuesday-Blitz-September-12-2023"]
[Site "Chess.com"]
[Date "2023.09.12"]
[Round "8"]
[White "mmDarko"]
[Black "Nf3c5"]
[Result "0-1"]
[WhiteElo "2267"]
[BlackElo "2580"]
[TimeControl "180+1"]
[EndTime "9:28:27 PDT"]
[Termination "Nf3c5 won on time"]

1. d4 {[%clk 0:02:55.8]} 1... Nf6 {[%clk 0:02:59]} 2. Nf3 {[%clk 0:02:56.7]}
2... g6 {[%clk 0:02:56.7]} 3. g3 {[%clk 0:02:57.6]} 3... Bg7 {[%clk 0:02:56.8]}
4. Bg2 {[%clk 0:02:58.5]} 4... O-O {[%clk 0:02:56.8]} 5. O-O {[%clk 0:02:59.4]}
5... d6 {[%clk 0:02:55.6]} 6. c4 {[%clk 0:03:00.3]} 6... c6 {[%clk 0:02:56]} 7.
Nc3 {[%clk 0:03:01.2]} 7... Qa5 {[%clk 0:02:56.3]} 8. e4 {[%clk 0:02:52]} 8...
e5 {[%clk 0:02:55.2]} 9. d5 {[%clk 0:02:49.8]} 9... cxd5 {[%clk 0:02:54.7]} 10.
cxd5 {[%clk 0:02:47]} 10... Bd7 {[%clk 0:02:54.9]} 11. h3 {[%clk 0:02:42.4]}
11... Rc8 {[%clk 0:02:55.2]} 12. Ne1 {[%clk 0:02:41]} 12... Na6 {[%clk
0:02:45.2]} 13. Nd3 {[%clk 0:02:40.7]} 13... b5 {[%clk 0:02:37.2]} 14. Be3
{[%clk 0:02:34.6]} 14... b4 {[%clk 0:02:37]} 15. Ne2 {[%clk 0:02:30.4]} 15...
Qb5 {[%clk 0:02:10]} 16. a4 {[%clk 0:02:20.2]} 16... bxa3 {[%clk 0:01:57.1]} 17.
Rxa3 {[%clk 0:02:16.7]} 17... Nb4 {[%clk 0:01:46.9]} 18. Nxb4 {[%clk 0:01:55.7]}
18... Qxb4 {[%clk 0:01:47.8]} 19. Qb3 {[%clk 0:01:41]} 19... a5 {[%clk
0:01:38.7]} 20. Qxb4 {[%clk 0:01:37.3]} 20... axb4 {[%clk 0:01:38.1]} 21. Rxa8
{[%clk 0:01:35.4]} 21... Rxa8 {[%clk 0:01:39]} 22. Nc1 {[%clk 0:01:19]} 22...
Bb5 {[%clk 0:01:30.8]} 23. Re1 {[%clk 0:00:59.7]} 23... Ra1 {[%clk 0:01:29.5]}
24. f3 {[%clk 0:00:54]} 24... b3 {[%clk 0:01:09.3]} 25. Bf1 {[%clk 0:00:47.2]}
25... Ba4 {[%clk 0:01:08.8]} 26. Nd3 {[%clk 0:00:38.4]} 26... Ra2 {[%clk
0:01:02.4]} 27. Bd2 {[%clk 0:00:09.4]} 27... Nd7 {[%clk 0:00:53.3]} 28. Bc3
{[%clk 0:00:08.2]} 28... Bh6 {[%clk 0:00:48.8]} 29. Nb4 {[%clk 0:00:08]} 29...
Nc5 {[%clk 0:00:43]} 30. Nxa2 {[%clk 0:00:07.4]} 30... bxa2 {[%clk 0:00:43.9]}
31. Ra1 {[%clk 0:00:06.2]} 31... Be3+ {[%clk 0:00:39.3]} 32. Kg2 {[%clk
0:00:06.1]} 32... Bb3 {[%clk 0:00:39.7]} 33. Bb4 {[%clk 0:00:04.9]} 33... f5
{[%clk 0:00:30.2]} 34. Bxc5 {[%clk 0:00:03.6]} 34... Bxc5 {[%clk 0:00:30.3]} 35.
Be2 {[%clk 0:00:03]} 35... Bd4 {[%clk 0:00:29.2]} 0-1

[Event "Early-Titled-Tuesday-Blitz-September-12-2023"]
[Site "Chess.com"]
[Date "2023.09.12"]
[Round "8"]
[White "Kirill_Klukin"]
[Black "MrTattaglia"]
[Result "0-1"]
[WhiteElo "2756"]
[BlackElo "2911"]
[TimeControl "180+1"]
[EndTime "9:28:29 PDT"]
[Termination "MrTattaglia won on time"]

1. d4 {[%clk 0:03:00.9]} 1... Nf6 {[%clk 0:02:55.8]} 2. c4 {[%clk 0:03:00.9]}
2... c5 {[%clk 0:02:56.7]} 3. d5 {[%clk 0:03:00.4]} 3... b5 {[%clk 0:02:56.9]}
4. cxb5 {[%clk 0:02:56.3]} 4... a6 {[%clk 0:02:57.2]} 5. e3 {[%clk 0:02:55.5]}
5... g6 {[%clk 0:02:57.2]} 6. Nc3 {[%clk 0:02:55.3]} 6... Bg7 {[%clk 0:02:56.9]}
7. Nf3 {[%clk 0:02:55.5]} 7... O-O {[%clk 0:02:50.9]} 8. a4 {[%clk 0:02:48.4]}
8... Qa5 {[%clk 0:02:49.8]} 9. Bd2 {[%clk 0:02:44.2]} 9... Qd8 {[%clk
0:02:32.6]} 10. Be2 {[%clk 0:02:33.6]} 10... axb5 {[%clk 0:02:09]} 11. axb5
{[%clk 0:02:29.4]} 11... Bb7 {[%clk 0:02:00.2]} 12. e4 {[%clk 0:02:24.7]} 12...
e6 {[%clk 0:01:59.9]} 13. Rxa8 {[%clk 0:01:56.1]} 13... Bxa8 {[%clk 0:01:56.1]}
14. Qa1 {[%clk 0:01:55.6]} 14... Bb7 {[%clk 0:01:50.4]} 15. Qa7 {[%clk 0:01:55]}
15... Qc8 {[%clk 0:01:48.8]} 16. O-O {[%clk 0:01:23.4]} 16... exd5 {[%clk
0:01:47]} 17. exd5 {[%clk 0:01:15.1]} 17... Nxd5 {[%clk 0:01:46]} 18. Nxd5
{[%clk 0:00:55.3]} 18... Bxd5 {[%clk 0:01:46.9]} 19. Bc3 {[%clk 0:00:44.3]}
19... d6 {[%clk 0:01:46.4]} 20. Rd1 {[%clk 0:00:41.7]} 20... Qe6 {[%clk
0:01:45.9]} 21. Re1 {[%clk 0:00:33.4]} 21... Bxc3 {[%clk 0:01:44]} 22. bxc3
{[%clk 0:00:27.5]} 22... Bxf3 {[%clk 0:01:43.8]} 23. gxf3 {[%clk 0:00:27.7]}
23... c4 {[%clk 0:01:43.6]} 24. Qd4 {[%clk 0:00:22.1]} 24... d5 {[%clk
0:01:43.8]} 25. Qe3 {[%clk 0:00:17.2]} 25... Qf6 {[%clk 0:01:43.2]} 26. Rd1
{[%clk 0:00:16.4]} 26... Qe6 {[%clk 0:01:40.3]} 27. Bf1 {[%clk 0:00:15.2]} 27...
Nd7 {[%clk 0:01:40]} 28. Qd4 {[%clk 0:00:14.8]} 28... Nf6 {[%clk 0:01:38.6]} 29.
Bg2 {[%clk 0:00:12.4]} 29... Rb8 {[%clk 0:01:38.9]} 30. Rb1 {[%clk 0:00:12.3]}
30... Qb6 {[%clk 0:01:38.8]} 31. Qd2 {[%clk 0:00:07.6]} 31... Re8 {[%clk
0:01:38.8]} 32. f4 {[%clk 0:00:07]} 32... Kg7 {[%clk 0:01:39.3]} 33. Bf3 {[%clk
0:00:05.3]} 33... h5 {[%clk 0:01:36.8]} 34. Kg2 {[%clk 0:00:02.5]} 34... Rd8
{[%clk 0:01:32]} 35. Qd4 {[%clk 0:00:02.6]} 35... Qxd4 {[%clk 0:01:31.5]} 36.
cxd4 {[%clk 0:00:03.5]} 36... Rb8 {[%clk 0:01:15.9]} 37. Kf1 {[%clk 0:00:03.6]}
37... c3 {[%clk 0:01:15.7]} 38. Be2 {[%clk 0:00:03.8]} 38... Ne4 {[%clk
0:01:11.1]} 39. Ke1 {[%clk 0:00:03.5]} 39... Re8 {[%clk 0:00:57.7]} 40. Rc1
{[%clk 0:00:02.4]} 40... Nd6 {[%clk 0:00:56.4]} 41. Kf1 {[%clk 0:00:02.7]} 41...
Rc8 {[%clk 0:00:54.2]} 42. Rc2 {[%clk 0:00:01.9]} 42... Nf5 {[%clk 0:00:52.7]}
0-1

[Event "Early-Titled-Tuesday-Blitz-September-12-2023"]
[Site "Chess.com"]
[Date "2023.09.12"]
[Round "8"]
[White "supereagles1201"]
[Black "Dacean99"]
[Result "0-1"]
[WhiteElo "2384"]
[BlackElo "2535"]
[TimeControl "180+1"]
[EndTime "9:28:29 PDT"]
[Termination "Dacean99 won on time"]

1. c4 {[%clk 0:03:00.9]} 1... e5 {[%clk 0:02:57]} 2. g3 {[%clk 0:03:00.5]} 2...
Nf6 {[%clk 0:02:56]} 3. Bg2 {[%clk 0:03:00.4]} 3... c6 {[%clk 0:02:56.1]} 4. Nf3
{[%clk 0:03:00.3]} 4... e4 {[%clk 0:02:56]} 5. Nd4 {[%clk 0:03:00.2]} 5... d5
{[%clk 0:02:55.8]} 6. d3 {[%clk 0:02:59.1]} 6... dxc4 {[%clk 0:02:45.7]} 7. dxe4
{[%clk 0:02:55.4]} 7... Bb4+ {[%clk 0:02:41.6]} 8. Nc3 {[%clk 0:02:53.7]} 8...
c5 {[%clk 0:02:41.8]} 9. Nb5 {[%clk 0:02:47.8]} 9... Qxd1+ {[%clk 0:02:36.7]}
10. Kxd1 {[%clk 0:02:47.6]} 10... Na6 {[%clk 0:02:37.2]} 11. Nd6+ {[%clk
0:02:23.6]} 11... Ke7 {[%clk 0:02:36.1]} 12. e5 {[%clk 0:02:17.3]} 12... Ng4
{[%clk 0:02:32.1]} 13. Nd5+ {[%clk 0:02:01.5]} 13... Kf8 {[%clk 0:02:29.1]} 14.
Kc2 {[%clk 0:01:48.9]} 14... Nxe5 {[%clk 0:02:19.9]} 15. a3 {[%clk 0:01:35.1]}
15... Ba5 {[%clk 0:02:18.6]} 16. f4 {[%clk 0:01:34.6]} 16... Nc6 {[%clk
0:02:17.4]} 17. Nxc4 {[%clk 0:01:33.2]} 17... Nd4+ {[%clk 0:01:58.4]} 18. Kd3
{[%clk 0:01:32.1]} 18... Bd8 {[%clk 0:01:54.4]} 19. b4 {[%clk 0:01:21.9]} 19...
Bf5+ {[%clk 0:01:50]} 20. e4 {[%clk 0:01:20.8]} 20... Bg4 {[%clk 0:01:50.1]} 21.
bxc5 {[%clk 0:00:55.9]} 21... Nb3 {[%clk 0:01:49.4]} 22. Rb1 {[%clk 0:00:55]}
22... Naxc5+ {[%clk 0:01:49.6]} 23. Ke3 {[%clk 0:00:52.5]} 23... Be6 {[%clk
0:01:38.7]} 24. Bb2 {[%clk 0:00:50.9]} 24... b5 {[%clk 0:01:36.7]} 25. Ne5
{[%clk 0:00:43.8]} 25... Bxd5 {[%clk 0:01:35.9]} 26. exd5 {[%clk 0:00:43.9]}
26... Bb6 {[%clk 0:01:36.1]} 27. Kf3 {[%clk 0:00:38.6]} 27... Nd2+ {[%clk
0:01:35]} 28. Kg4 {[%clk 0:00:39.1]} 28... h5+ {[%clk 0:01:31.9]} 29. Kh3 {[%clk
0:00:36.5]} 29... Nxb1 {[%clk 0:01:15.5]} 30. Rxb1 {[%clk 0:00:37.4]} 30... Rd8
{[%clk 0:01:11.6]} 31. Bd4 {[%clk 0:00:31.1]} 31... a6 {[%clk 0:01:11.5]} 32.
Rc1 {[%clk 0:00:24.5]} 32... Na4 {[%clk 0:01:11.5]} 33. Bxb6 {[%clk 0:00:20.1]}
33... Nxb6 {[%clk 0:01:12.4]} 34. Rc6 {[%clk 0:00:19.6]} 34... Nd7 {[%clk
0:01:08.6]} 35. Rxa6 {[%clk 0:00:18.4]} 35... Nf6 {[%clk 0:01:05.4]} 36. Ra7
{[%clk 0:00:17.1]} 36... Rh7 {[%clk 0:01:01]} 37. Rxf7+ {[%clk 0:00:16.5]} 37...
Kg8 {[%clk 0:01:01.2]} 38. Rb7 {[%clk 0:00:10]} 38... g5 {[%clk 0:00:52.4]} 39.
fxg5 {[%clk 0:00:06.5]} 39... Rxb7 {[%clk 0:00:52.1]} 40. gxf6 {[%clk
0:00:05.2]} 40... Ra7 {[%clk 0:00:49.3]} 41. f7+ {[%clk 0:00:05.6]} 41... Kf8
{[%clk 0:00:47.6]} 42. Bf3 {[%clk 0:00:03.9]} 42... Rd6 {[%clk 0:00:41.4]} 43.
Bxh5 {[%clk 0:00:03.4]} 43... Rxd5 {[%clk 0:00:38.6]} 44. Ng6+ {[%clk 0:00:03]}
44... Kxf7 {[%clk 0:00:39.2]} 0-1

[Event "Early-Titled-Tuesday-Blitz-September-12-2023"]
[Site "Chess.com"]
[Date "2023.09.12"]
[Round "8"]
[White "Fh2411"]
[Black "Iball95"]
[Result "0-1"]
[WhiteElo "2592"]
[BlackElo "2782"]
[TimeControl "180+1"]
[EndTime "9:28:30 PDT"]
[Termination "Iball95 won on time"]

1. d4 {[%clk 0:02:39.1]} 1... d5 {[%clk 0:02:57.4]} 2. Nf3 {[%clk 0:02:38.9]}
2... Nf6 {[%clk 0:02:57.1]} 3. c4 {[%clk 0:02:39.1]} 3... e6 {[%clk 0:02:57.1]}
4. Nc3 {[%clk 0:02:39.2]} 4... c5 {[%clk 0:02:57.1]} 5. cxd5 {[%clk 0:02:38.5]}
5... cxd4 {[%clk 0:02:57]} 6. Qxd4 {[%clk 0:02:35.3]} 6... Nxd5 {[%clk
0:02:55.4]} 7. Nxd5 {[%clk 0:02:32.7]} 7... exd5 {[%clk 0:02:55.7]} 8. e3 {[%clk
0:02:27.8]} 8... Nc6 {[%clk 0:02:54.9]} 9. Qa4 {[%clk 0:02:15.5]} 9... Bb4+
{[%clk 0:02:44.6]} 10. Bd2 {[%clk 0:02:14.8]} 10... Bxd2+ {[%clk 0:02:44.8]} 11.
Nxd2 {[%clk 0:02:06]} 11... O-O {[%clk 0:02:45.4]} 12. Nf3 {[%clk 0:01:54.6]}
12... Qb6 {[%clk 0:02:43.7]} 13. Qb5 {[%clk 0:01:52.2]} 13... Nb4 {[%clk
0:02:32.3]} 14. Qxb6 {[%clk 0:01:37.7]} 14... axb6 {[%clk 0:02:33.1]} 15. Kd2
{[%clk 0:01:37.2]} 15... Nxa2 {[%clk 0:02:26.8]} 16. Nd4 {[%clk 0:01:25.6]}
16... Be6 {[%clk 0:01:45.2]} 17. Nc2 {[%clk 0:01:20.7]} 17... Rfc8 {[%clk
0:01:37.2]} 18. Bd3 {[%clk 0:01:19.5]} 18... Ra5 {[%clk 0:01:25.9]} 19. Rhb1
{[%clk 0:01:11.3]} 19... Kf8 {[%clk 0:01:22]} 20. b4 {[%clk 0:01:07.2]} 20...
Ra4 {[%clk 0:01:00.5]} 21. Bb5 {[%clk 0:01:02.8]} 21... Raa8 {[%clk 0:00:34.6]}
22. Rb2 {[%clk 0:00:33.6]} 22... Nc3 {[%clk 0:00:33]} 23. Rxa8 {[%clk
0:00:27.1]} 23... Ne4+ {[%clk 0:00:32.1]} 24. Kd3 {[%clk 0:00:24.2]} 24... Rxa8
{[%clk 0:00:32.7]} 25. f3 {[%clk 0:00:24.6]} 25... Nd6 {[%clk 0:00:31.6]} 26.
Nd4 {[%clk 0:00:23.2]} 26... Ra3+ {[%clk 0:00:31]} 27. Kd2 {[%clk 0:00:21.6]}
27... Ke7 {[%clk 0:00:28.3]} 28. Bd3 {[%clk 0:00:20.7]} 28... g6 {[%clk
0:00:25.9]} 29. Kc2 {[%clk 0:00:12.2]} 29... Bd7 {[%clk 0:00:22.7]} 30. Kd2
{[%clk 0:00:11.5]} 30... Kd8 {[%clk 0:00:18.8]} 31. Rc2 {[%clk 0:00:08.5]} 31...
Ba4 {[%clk 0:00:18.1]} 32. Rb2 {[%clk 0:00:08.1]} 32... b5 {[%clk 0:00:15.8]}
0-1